bitfinex/quotes_ETHUSD_20250414
["timestamp","ask_amount","ask_price","bid_price","bid_amount"]
[1744660261600,6.12238,1633.4,1633.2,4.0]
[1744660261904,5.616,1633.5,1633.2,10.12276]
[1744660262107,5.616,1633.5,1633.3,6.12253]
[1744660262309,5.616,1633.5,1633.2,10.12291]
[1744660262310,0.7994,1633.3,1633.2,12.24571]
[1744660262612,3.0,1633.4,1633.1,6.17328]
[1744660262805,5.616,1633.5,1633.4,6.12219]
[1744660263017,5.616,1633.5,1633.4,6.92739]
[1744660263339,5.616,1633.5,1633.4,0.8052]
[1744660263721,0.7994,1633.8,1633.4,6.92733]
[1744660264030,6.12159,1633.6,1633.4,0.8052]
[1744660264327,5.629,1633.5,1633.2,0.787]
[1744660264527,5.629,1633.5,1633.1,0.05]
[1744660264528,6.12282,1633.3,1633.1,0.05]
[1744660264833,6.90313,1632.9,1632.5,6.12542]
[1744660265002,15.30344,1632.8,1632.1,6.17692]
[1744660265204,15.30344,1632.8,1632.7,4.3966834]
[1744660265396,19.15823778,1632.8,1632.7,3.4e-06]
[1744660265631,21.68649456,1632.8,1632.7,3.4e-06]
[1744660265962,22.13800325,1632.8,1632.7,3.4e-06]
[1744660266110,0.7788,1632.2,1632.1,0.05]
[1744660266432,16.0865,1632.2,1632.1,0.05]
[1744660266661,16.0865,1632.2,1631.1,9.01636088]
[1744660266662,6.68045,1631.2,1631.1,9.01636088]
[1744660266800,5.97,1631.4,1631.1,9.01636088]
[1744660267000,3.0,1631.4,1631.1,9.01636088]
[1744660267433,6.13025,1631.3,1631.1,9.01636088]
[1744660267649,3.0,1631.4,1631.1,9.01636088]
[1744660267819,3.0,1631.7,1631.5,6.12911]
[1744660268134,3.0,1631.7,1631.2,7.03201609]
[1744660268135,9.12879,1631.7,1631.2,7.03201609]
[1744660268301,6.12897,1631.6,1631.2,0.90163609]
[1744660268645,3.0,1631.7,1631.2,0.90163609]
[1744660268646,9.1289,1631.7,1631.2,6.13025]
[1744660268804,3.55,1631.4,1631.1,9.01636088]
[1744660269010,5.97,1631.3,1631.1,9.01636088]
[1744660269308,12.10034,1631.3,1631.1,9.01636088]
[1744660269629,10.46005,1631.2,1631.1,9.01636088]
[1744660270006,10.46005,1631.2,1631.1,0.05168824]
[1744660270314,0.55,1631.4,1631.1,0.05168824]
[1744660270648,9.90898,1631.5,1631.1,6.18248824]
[1744660271142,1.392379,1631.9,1631.3,6.12971]
[1744660271342,54.7206,1632.2,1631.9,6.12766]
[1744660271505,6.216,1632.2,1631.9,6.12773]
[1744660272026,0.7796,1632.5,1631.7,6.92104]
[1744660272255,6.218,1632.5,1632.1,6.12683]
[1744660272415,6.1263,1632.4,1631.9,12.25529]
[1744660272769,6.218,1632.5,1632.1,6.12678]
[1744660272916,12.34371,1632.5,1632.1,6.12678]
[1744660273117,3.34565678,1632.8,1632.1,6.87748]
[1744660273346,6.12507,1632.7,1632.3,6.12623]
[1744660273647,6.12485,1632.7,1632.3,6.12618]
[1744660273855,6.12447,1632.8,1632.4,6.12565]
[1744660274020,6.12431,1632.9,1632.5,6.1252]
[1744660274349,6.12447,1632.8,1632.4,12.25165]
[1744660274645,6.12447,1632.8,1632.4,6.12573]
[1744660274847,6.736501,1632.9,1632.5,6.12557]
[1744660275220,6.736501,1632.9,1632.5,6.12537]
[1744660275475,6.12464,1632.8,1632.4,6.12591]
[1744660275615,10.12116239,1633.0,1632.5,0.06125252]
[1744660275969,6.12448,1632.8,1632.4,6.12589]
[1744660276146,10.12126239,1633.0,1632.6,6.12513]
[1744660276349,10.12126239,1633.0,1632.5,6.12555]
[1744660276651,3.99741239,1633.0,1632.5,0.612555]
[1744660276853,3.99741239,1633.0,1632.9,6.12407]
[1744660277053,3.99741239,1633.0,1632.8,6.12429]
[1744660277225,3.99741239,1633.0,1632.8,6.12428]
[1744660277419,3.99741239,1633.0,1632.9,6.12407]
[1744660278119,3.99741239,1633.0,1632.8,6.91158]
[1744660278544,6.12333,1633.1,1632.8,0.7873]
[1744660278742,9.1228,1633.3,1632.9,6.12379]
[1744660278948,10.95683,1633.3,1632.9,6.12387]
[1744660279123,14.07968,1633.3,1632.9,6.12387]
[1744660279480,0.8162,1633.5,1632.9,6.12407]
[1744660279776,6.88146,1633.8,1633.4,6.12205]
[1744660279982,0.7607,1633.8,1633.5,6.12181]
[1744660280129,0.7607,1633.8,1633.1,6.12302]
[1744660280130,6.218,1634.0,1633.3,6.90133]
[1744660280332,6.218,1634.0,1633.7,6.12095]
[1744660280645,12.33799,1634.0,1633.6,6.12142]
[1744660280848,6.12036,1633.9,1633.6,6.12142]
[1744660281172,12.33799,1634.0,1633.6,12.24268]
[1744660281379,12.33799,1634.0,1633.6,6.12126]
[1744660281582,7.451799,1634.0,1633.7,6.12092]
[1744660281882,6.11886,1634.3,1634.0,6.11984]
[1744660281883,6.11887,1634.3,1634.0,6.11984]
[1744660282029,6.11887,1634.3,1633.9,6.12027]
[1744660282431,6.11887,1634.3,1633.8,6.96094965]
[1744660282432,0.05,1634.4,1634.1,6.11953]
[1744660282736,0.05,1634.4,1634.2,6.11915]
[1744660283045,0.05,1634.4,1633.8,6.89967]
[1744660283372,6.11888,1634.3,1633.9,6.1201]
[1744660283733,6.735768,1634.3,1633.9,6.18129702]
[1744660283934,6.11948,1634.2,1633.8,13.02032]
[1744660284158,12.23888,1634.2,1633.8,6.89966]
[1744660284358,12.23888,1634.2,1633.8,0.7791]
[1744660284661,6.11944,1634.2,1633.8,0.7791]
[1744660284866,12.23889,1634.2,1633.8,6.89973]
[1744660285242,6.11958,1634.1,1633.8,6.89973]
[1744660285438,0.616888,1634.3,1633.9,0.06119665]
[1744660285632,6.16868,1634.4,1634.0,6.1198]
[1744660285856,6.16868,1634.4,1634.1,6.11952]
[1744660286057,0.05,1634.4,1634.2,6.11919]
[1744660286268,0.05,1634.4,1634.2,6.88548]
[1744660286569,0.05,1634.4,1634.3,6.18000492]
[1744660286765,0.05,1634.4,1634.3,7.42536549]
[1744660287379,0.05,1634.4,1634.3,10.73964453]
[1744660287585,0.05,1634.4,1634.3,20.8312169]
[1744660287871,0.05,1634.4,1634.3,20.77004453]
[1744660288181,0.05,1634.4,1634.3,14.45576549]
[1744660288799,0.05,1634.4,1634.3,13.14922]
[1744660289393,0.05,1634.4,1634.3,0.8164]
[1744660289572,6.16845,1634.4,1634.0,6.9385]
[1744660289743,6.11899,1634.3,1634.1,4.0]
[1744660290495,6.11922,1634.2,1633.9,6.12015]
[1744660290691,12.23868,1634.2,1633.8,6.93933]
[1744660290852,6.11922,1634.2,1633.8,6.93922]
[1744660291244,12.28726,1634.4,1634.0,6.11982]
[1744660291440,6.11889,1634.3,1633.9,6.18137365]
[1744660291987,6.11938,1634.2,1633.9,0.06119365]
[1744660292191,6.11938,1634.2,1633.9,6.18145365]
[1744660292485,12.23883,1634.2,1633.9,0.06119365]
[1744660292699,6.11988,1634.1,1633.8,0.8187]
[1744660292995,12.23861,1634.2,1633.8,13.05972]
[1744660293163,1.223861,1634.2,1633.9,6.12029]
[1744660293365,6.11886,1634.3,1634.0,6.11988]
[1744660293653,6.11886,1634.3,1633.9,6.18146589]
[1744660293654,6.11921,1634.2,1633.9,6.18133589]
[1744660293859,12.23787,1634.3,1633.9,12.30154589]
[1744660294039,6.11886,1634.3,1633.9,12.30154589]
[1744660294244,6.11935,1634.2,1633.9,6.18133589]
[1744660294475,7.5081386,1634.3,1633.9,0.06119589]
[1744660294700,0.05,1634.4,1634.1,6.11941]
[1744660294899,6.16861,1634.4,1634.0,6.11983]
[1744660295114,6.16861,1634.4,1634.1,6.18063805]
[1744660295521,0.05,1634.4,1634.3,0.7961]
[1744660295714,0.05,1634.4,1634.3,7.606432]
[1744660295866,0.05,1634.4,1634.3,6.91492]
[1744660297208,0.7887,1635.1,1634.3,0.85727833]
[1744660297425,6.11658,1634.9,1634.3,0.7961]
[1744660297729,6.11707,1634.8,1634.5,6.11785]
[1744660297901,6.11635,1635.0,1634.7,6.11715]
[1744660298114,7.418446,1635.0,1634.7,12.23432]
[1744660298309,6.11668,1634.9,1634.6,6.11757]
[1744660298629,12.23344,1634.9,1634.6,6.11757]
[1744660298790,13.534726,1635.0,1634.6,6.11757]
[1744660298991,6.11669,1634.9,1634.6,6.11757]
[1744660299406,0.7418786,1634.9,1634.5,6.11799]
[1744660299615,6.11763,1634.7,1634.4,6.11842]
[1744660299785,6.11711,1634.8,1634.5,6.11806]
[1744660300122,6.11755,1634.7,1634.4,6.11832]
[1744660300318,3.7887,1635.1,1634.3,0.7961]
[1744660300525,6.11674,1634.9,1634.5,6.11775]
[1744660300676,0.611674,1634.9,1634.4,6.11829]
[1744660300880,6.11726,1634.8,1634.5,6.11798]
[1744660301077,6.11698,1634.8,1634.5,12.23594]
[1744660301327,6.11698,1634.8,1634.5,6.11796]
[1744660301531,6.11783,1634.6,1634.3,6.91487]
[1744660301685,12.23487,1634.7,1634.3,13.03357]
[1744660301885,7.340867,1634.7,1634.4,6.17956832]
[1744660302096,1.223487,1634.7,1634.4,6.17956832]
[1744660302312,1.223487,1634.7,1634.5,6.11792]
[1744660302718,7.340957,1634.7,1634.4,6.17957832]
[1744660302921,6.728424,1634.9,1634.4,0.06117832]
[1744660303248,6.11697,1634.8,1634.5,6.11789]
[1744660303742,12.23414,1634.8,1634.5,6.11789]
[1744660303942,12.23416,1634.8,1634.5,6.11789]
[1744660304127,6.11701,1634.8,1634.5,6.118]
[1744660304334,6.11701,1634.8,1634.5,6.11797]
[1744660304547,6.11701,1634.8,1634.5,12.23593]
[1744660304744,6.11633,1635.0,1634.5,1.223593]
[1744660304902,6.11633,1635.0,1634.7,12.23432]
[1744660305235,12.37213,1635.3,1634.7,12.23432]
[1744660305236,6.257,1635.3,1634.8,6.92861]
[1744660305459,6.11559,1635.2,1634.8,6.92876]
[1744660305605,12.23187,1635.1,1634.8,6.92873]
[1744660305806,13.693481,1635.3,1634.9,0.06115966]
[1744660306046,13.718071,1635.3,1634.8,6.92882]
[1744660306222,6.11593,1635.1,1634.8,6.92874]
[1744660306835,12.23195,1635.1,1634.8,6.92873]
[1744660307037,6.11593,1635.1,1634.8,6.92873]
[1744660307445,6.11593,1635.1,1634.8,13.04558]
[1744660307738,6.11553,1635.2,1634.9,6.11656]
[1744660307938,14.2147001,1635.2,1634.9,6.11656]
[1744660308122,6.11585,1635.1,1634.8,13.04558]
[1744660308305,8.0988901,1635.2,1634.8,13.04558]
[1744660308306,14.2146701,1635.2,1634.9,6.11657]
[1744660308504,6.11602,1635.1,1634.8,6.92873]
[1744660308704,1.9833601,1635.2,1634.9,6.11648]
[1744660308905,1.9833601,1635.2,1634.8,6.92874]
[1744660309131,6.11596,1635.1,1634.8,6.92874]
[1744660309636,6.11668,1634.9,1634.6,6.9058]
[1744660310049,6.1163,1635.0,1634.6,6.9058]
[1744660310249,6.1163,1635.0,1634.7,12.29560682]
[1744660310455,13.04174201,1635.1,1634.8,6.11682]
[1744660310630,6.92579201,1635.1,1634.8,6.11682]
[1744660310819,6.11644,1635.0,1634.7,6.11724]
[1744660311021,6.11658,1634.9,1634.6,13.02345]
[1744660311357,6.8088492,1635.0,1634.7,6.11708]
[1744660311652,0.80993201,1635.1,1634.6,0.7882]
[1744660311854,6.11664,1634.9,1634.6,6.90579]
[1744660312351,6.11631,1635.0,1634.6,0.84936906]
[1744660312546,6.11631,1635.0,1634.7,6.11713]
[1744660312753,6.92585201,1635.1,1634.8,6.11682]
[1744660312955,0.80993201,1635.1,1634.8,6.11682]
[1744660313253,6.11632,1635.0,1634.7,6.1172]
[1744660313561,6.11632,1635.0,1634.7,6.11728]
[1744660313562,7.4205382,1635.0,1634.7,6.11728]
[1744660313927,6.11692,1634.9,1634.6,0.7882]
[1744660314121,8.2315382,1635.0,1634.6,0.7882]
[1744660314349,2.1152182,1635.0,1634.7,6.17835905]
[1744660314656,8.2315382,1635.0,1634.7,6.17837905]
[1744660314853,8.2315382,1635.0,1634.6,0.7882]
[1744660315160,6.93988382,1634.9,1634.6,6.11748]
[1744660315314,13.05663382,1634.9,1634.6,6.11748]
[1744660315515,6.14,1635.1,1634.8,6.11658]
[1744660315756,6.14,1635.1,1634.6,0.8137]
[1744660315930,13.12955,1635.4,1635.1,6.11568]
[1744660316353,19.24444,1635.4,1635.0,13.04588]
[1744660316524,19.24444,1635.4,1635.0,0.8137]
[1744660316525,6.11562,1635.2,1635.0,0.8137]
[1744660316728,8.039604,1635.3,1635.0,6.92987]
[1744660316930,1.924444,1635.3,1635.0,6.92979]
[1744660317131,8.039534,1635.3,1635.0,6.92979]
[1744660317329,1.924444,1635.3,1635.0,6.92979]
[1744660317536,8.039604,1635.3,1635.0,0.8137]
[1744660317735,8.039604,1635.3,1635.0,6.9298]
[1744660317967,14.154834,1635.3,1635.0,6.1161]
[1744660318166,6.11549,1635.2,1634.9,6.11648]
[1744660318663,6.11549,1635.2,1634.9,12.23293]
[1744660318849,8.039604,1635.3,1635.0,6.1161]
[1744660319249,14.154954,1635.3,1635.0,6.1161]
[1744660319567,14.154854,1635.3,1635.0,6.1161]
[1744660319745,7.5311054,1635.2,1634.9,6.11651]
[1744660319926,13.6467654,1635.2,1634.9,6.11651]
[1744660320463,13.6468254,1635.2,1634.9,6.11651]
[1744660320628,13.6468854,1635.2,1634.9,6.11651]
[1744660321262,1.4154854,1635.2,1635.0,6.11619]
[1744660321465,1.4154854,1635.2,1634.9,6.11647]
[1744660321639,6.11546,1635.2,1634.9,12.23293]
[1744660321828,13.12952,1635.4,1634.8,9.94824171]
[1744660322031,19.24441,1635.4,1635.0,6.11593]
[1744660322329,6.11509,1635.3,1635.0,6.11593]
[1744660322519,6.11509,1635.3,1635.0,12.23203]
[1744660322719,6.11522,1635.3,1635.0,6.11593]
[1744660322961,6.11621,1635.0,1634.8,0.7541]
[1744660323125,6.94694,1634.9,1634.5,6.93064]
[1744660323330,12.23435,1634.8,1634.6,4.0]
[1744660323527,6.11711,1634.8,1634.6,4.0]
[1744660323754,6.11711,1634.8,1634.5,6.93064]
[1744660323955,6.11711,1634.8,1634.5,13.04861]
[1744660324129,6.94699,1634.9,1634.6,6.1176]
[1744660324331,14.370052,1634.9,1634.6,6.1176]
[1744660324666,6.11709,1634.8,1634.5,6.93089]
[1744660324824,6.11709,1634.8,1634.5,0.8129]
[1744660324825,12.2342,1634.8,1634.5,0.8129]
[1744660325025,12.2342,1634.8,1634.4,12.2367]
[1744660325631,6.11709,1634.8,1634.5,6.11806]
[1744660325963,6.11709,1634.8,1634.5,6.11796]
[1744660326830,6.11709,1634.8,1634.5,12.23592]
[1744660327236,14.370082,1634.9,1634.6,6.11768]
[1744660327565,14.370082,1634.9,1634.6,6.11748]
[1744660327566,7.423012,1634.9,1634.6,6.11748]
[1744660327770,7.423012,1634.9,1634.6,12.23504]
[1744660328764,6.11701,1634.8,1634.5,6.11801]
[1744660329143,12.23429,1634.8,1634.5,6.11801]
[1744660329342,6.11673,1634.9,1634.6,6.11768]
[1744660329538,12.23359,1634.9,1634.5,12.29721289]
[1744660329746,6.11698,1634.8,1634.5,6.11802]
[1744660330268,7.340089,1634.9,1634.5,6.11802]
[1744660330269,1.223359,1634.9,1634.5,3.07745171]
[1744660330571,6.19,1635.4,1635.1,6.11559]
[1744660330739,6.11557,1635.2,1634.9,6.94422]
[1744660330943,7.338667,1635.2,1634.9,0.8278]
[1744660331255,6.11583,1635.1,1634.9,0.8278]
[1744660331437,6.11583,1635.1,1634.7,10.02716171]
[1744660331653,8.117047,1635.2,1634.9,6.11634]
[1744660331954,8.117047,1635.2,1634.8,12.2337]
[1744660331955,6.11583,1635.1,1634.8,12.2337]
[1744660332159,6.11583,1635.1,1634.8,6.11685]
[1744660332545,13.00953,1635.2,1634.8,12.23367]
[1744660332862,12.23204,1635.1,1634.7,16.14444171]
[1744660333062,2.079353,1635.2,1634.8,6.1779917]
[1744660333266,6.89401,1635.2,1634.9,6.11645]
[1744660333634,13.00969,1635.2,1634.9,6.11645]
[1744660333833,13.00961,1635.2,1634.9,6.11658]
[1744660334038,6.894,1635.2,1634.9,6.11658]
[1744660334233,6.894,1635.2,1634.8,6.1780117]
[1744660334470,6.11585,1635.1,1634.8,6.1780117]
[1744660334654,7.5834,1635.2,1634.9,6.1164]
[1744660335135,6.805,1635.2,1634.9,12.23284]
[1744660335450,19.2296,1635.4,1635.0,12.23228]
[1744660335651,6.1151,1635.3,1635.0,12.23228]
[1744660335961,6.1151,1635.3,1635.0,6.11609]
[1744660336674,6.9997,1635.4,1635.0,6.17724496]
[1744660336880,12.30483,1635.4,1635.0,6.93929]
[1744660337052,6.16483,1635.4,1635.1,6.11558]
[1744660337456,0.05,1635.4,1635.2,6.17632935]
[1744660337675,0.05,1635.4,1635.2,6.11518]
[1744660337872,0.05,1635.4,1635.1,6.11573]
[1744660338176,6.16488,1635.4,1635.1,6.11573]
[1744660338477,0.05,1635.4,1635.1,12.23146]
[1744660338779,0.05,1635.4,1635.2,6.11545]
[1744660339159,0.05,1635.4,1635.2,6.17644677]
[1744660339375,0.05,1635.4,1635.2,6.1153]
[1744660340174,6.16478,1635.4,1635.1,6.11574]
[1744660340364,0.05,1635.4,1635.1,6.11583]
[1744660340673,0.05,1635.4,1635.1,12.23166]
[1744660341095,0.05,1635.4,1635.2,6.1154]
[1744660341638,0.05,1635.4,1635.1,6.11577]
[1744660341834,0.05,1635.4,1635.1,6.11567]
[1744660342042,6.11509,1635.3,1635.0,6.93937]
[1744660342278,6.11509,1635.3,1635.0,6.93935]
[1744660342480,12.23039,1635.3,1634.9,12.23316]
[1744660342651,6.11586,1635.1,1634.8,6.91074]
[1744660343048,12.23187,1635.1,1634.8,6.11684]
[1744660343382,6.93532,1635.2,1634.8,12.23366]
[1744660343542,13.05104,1635.2,1634.8,12.23366]
[1744660344378,6.93532,1635.2,1634.9,12.23306]
[1744660344579,6.93532,1635.2,1634.9,6.11653]
[1744660344778,8.85437,1635.2,1634.9,6.11653]
[1744660345148,14.97019,1635.2,1634.8,6.11693]
[1744660345352,6.11584,1635.1,1634.7,6.1173]
[1744660345551,6.11584,1635.1,1634.8,6.11693]
[1744660345746,2.73885,1635.2,1634.6,0.8314]
[1744660345952,6.11658,1634.9,1634.6,6.94905]
[1744660346176,6.11583,1635.1,1634.8,6.11682]
[1744660346482,6.11656,1635.0,1634.6,6.1176]
[1744660346658,6.1166,1634.9,1634.6,12.23519]
[1744660346859,6.1166,1634.9,1634.6,6.11759]
[1744660347062,6.1166,1634.9,1634.6,12.23518]
[1744660347263,6.066,1635.1,1634.5,6.11791]
[1744660347468,0.6066,1635.0,1634.4,0.8243]
[1744660347754,6.11778,1634.6,1634.3,12.23741]
[1744660347988,12.23585,1634.6,1634.4,4.0]
[1744660348157,6.11778,1634.6,1634.3,6.1187]
[1744660348356,12.23571,1634.6,1634.3,6.11868]
[1744660348569,12.18342,1634.7,1634.3,6.11867]
[1744660348774,13.401762,1634.7,1634.3,12.23737]
[1744660349085,6.066,1634.7,1634.4,6.11814]
[1744660349280,6.066,1634.7,1634.4,0.06117743]
[1744660349488,6.066,1634.7,1634.6,6.1177]
[1744660349662,6.066,1634.7,1634.4,6.11832]
[1744660349861,12.18357,1634.7,1634.4,6.11832]
[1744660350286,14.013623,1634.7,1634.3,6.11869]
[1744660350493,12.18357,1634.7,1634.3,12.23741]
[1744660350985,12.18357,1634.7,1634.4,6.11839]
[1744660351152,12.18357,1634.7,1634.4,6.17956746]
[1744660351353,6.066,1634.7,1634.5,12.2359]
[1744660351755,6.066,1634.7,1634.6,6.1177]
[1744660351961,6.066,1634.7,1634.4,6.11843]
[1744660352173,6.066,1634.7,1634.4,12.23675]
[1744660352374,20.131001,1634.7,1634.4,6.11832]
[1744660352569,6.066,1634.7,1634.3,0.06118081]
[1744660352776,6.11774,1634.6,1634.3,6.1187]
[1744660352972,12.18351,1634.7,1634.3,6.11869]
[1744660353185,12.18351,1634.7,1634.4,6.11838]
[1744660353485,0.8055,1634.9,1634.3,6.11879]
[1744660353663,6.11762,1634.7,1634.3,12.23758]
[1744660353862,12.23525,1634.7,1634.3,12.23758]
[1744660354489,6.11697,1634.8,1634.4,6.11821]
[1744660354789,6.11733,1634.7,1634.4,6.11821]
[1744660354989,6.11733,1634.7,1634.4,12.23655]
[1744660355299,15.78883,1635.0,1634.7,6.11718]
[1744660355300,6.066,1635.0,1634.7,6.11718]
[1744660355591,18.2989,1635.0,1634.6,13.02458]
[1744660355821,6.11659,1634.9,1634.6,13.02458]
[1744660356155,1.829894,1634.9,1634.4,6.11833]
[1744660356478,12.23448,1634.8,1634.4,12.23667]
[1744660356979,6.1174,1634.7,1634.4,6.11832]
[1744660357186,6.1174,1634.7,1634.4,12.23665]
[1744660357383,12.23441,1634.8,1634.4,6.11831]
[1744660357584,6.11738,1634.7,1634.4,6.11831]
[1744660357786,6.11704,1634.8,1634.3,3.76749819]
[1744660357990,14.153302,1634.8,1634.5,6.1179]
[1744660358157,6.11733,1634.7,1634.4,12.23669]
[1744660358810,6.11783,1634.6,1634.3,9.88622819]
[1744660359106,9.89927,1634.5,1634.2,6.11909]
[1744660359258,6.11855,1634.4,1634.1,13.02582]
[1744660360003,6.89927,1634.5,1634.2,6.11909]
[1744660360302,18.32476,1634.6,1634.2,6.11907]
[1744660360508,18.32476,1634.6,1634.3,6.11865]
[1744660361088,6.11819,1634.5,1634.2,6.11909]
[1744660361291,6.1186,1634.4,1634.1,16.00407819]
[1744660361480,12.23642,1634.5,1634.2,6.11919]
[1744660361682,6.11847,1634.4,1634.1,9.88455819]
[1744660361861,6.11847,1634.4,1634.1,16.00401819]
[1744660362063,6.11819,1634.5,1634.2,6.11919]
[1744660362704,12.23642,1634.5,1634.2,6.11919]
[1744660363111,6.11892,1634.3,1634.1,0.7868]
[1744660363400,6.11858,1634.4,1634.1,6.11954]
[1744660363601,6.11858,1634.4,1634.1,12.23901]
[1744660364172,0.8117,1634.5,1634.2,6.11915]
[1744660364371,6.14,1634.6,1634.4,6.11841]
[1744660364607,6.14,1634.6,1634.4,12.23676]
[1744660364816,6.92917,1634.7,1634.4,2.97829819]
[1744660364817,0.8117,1634.7,1634.4,2.97829819]
[1744660365111,8.059092,1634.8,1634.4,6.11825]
[1744660365295,6.11757,1634.7,1634.4,6.11825]
[1744660365485,12.23526,1634.7,1634.3,12.23744]
[1744660365815,6.11757,1634.7,1634.4,6.11835]
[1744660366120,12.23503,1634.7,1634.4,6.11835]
[1744660366344,6.11746,1634.7,1634.4,6.11834]
[1744660366548,6.11737,1634.7,1634.4,12.23666]
[1744660367748,12.23488,1634.7,1634.4,6.11832]
[1744660368042,6.11737,1634.7,1634.4,12.23665]
[1744660368255,8.036142,1634.8,1634.4,2.97829819]
[1744660368403,6.11705,1634.8,1634.5,6.1179]
[1744660368610,6.11748,1634.7,1634.4,15.21496819]
[1744660369341,6.14,1634.9,1634.7,6.1171]
[1744660369648,6.14,1634.9,1634.6,9.88057819]
[1744660369850,12.25664,1634.9,1634.6,10.87467375]
[1744660370073,12.25662,1634.9,1634.6,10.87467375]
[1744660370236,18.37334,1634.9,1634.6,10.87467375]
[1744660370440,18.37334,1634.9,1634.6,1.77877556]
[1744660370441,6.14,1634.9,1634.6,1.77877556]
[1744660370644,12.25673,1634.9,1634.6,6.9023]
[1744660370845,18.37351,1634.9,1634.6,6.9023]
[1744660371626,6.14,1634.9,1634.6,0.7846]
[1744660371832,6.14,1634.9,1634.7,6.11707]
[1744660372436,3.7677,1635.1,1634.9,6.11658]
[1744660372770,9.88363,1635.1,1634.8,12.23364]
[1744660373064,9.88363,1635.1,1634.8,6.11682]
[1744660373689,6.11624,1635.0,1634.7,12.23447]
[1744660373970,15.99964,1635.1,1634.8,6.11694]
[1744660374147,15.23194,1635.1,1634.8,6.11694]
[1744660374555,18.18953,1635.2,1634.9,6.11635]
[1744660374725,12.074,1635.2,1634.9,6.11635]
[1744660374926,6.11587,1635.1,1634.8,6.11689]
[1744660375125,6.11585,1635.1,1634.8,12.2337]
[1744660375327,6.11585,1635.1,1634.8,1.22337]
[1744660375628,6.11621,1635.0,1634.7,6.11715]
[1744660375859,6.11621,1635.0,1634.7,12.23436]
[1744660376056,6.11621,1635.0,1634.6,9.88057819]
[1744660376239,6.11694,1634.9,1634.6,0.7846]
[1744660376447,13.626374,1634.9,1634.6,6.90229]
[1744660376663,6.11699,1634.8,1634.4,3.76129819]
[1744660376939,6.11742,1634.7,1634.4,9.87957819]
[1744660377151,6.11742,1634.7,1634.4,15.99791819]
[1744660377340,6.9208,1634.9,1634.4,15.99791819]
[1744660377341,19.15429,1634.9,1634.6,6.11766]
[1744660378082,6.14,1634.9,1634.6,16.43712019]
[1744660378385,6.14,1634.9,1634.7,6.1172]
[1744660379098,12.25663,1634.9,1634.6,10.31945019]
[1744660379248,12.25663,1634.9,1634.6,16.43705019]
[1744660380192,6.14,1634.9,1634.6,7.341152]
[1744660380400,6.11882,1634.3,1634.2,0.7749]
[1744660380548,12.23797,1634.3,1634.2,4.0]
[1744660380744,6.11882,1634.3,1634.2,4.0]
[1744660381292,8.017445,1634.3,1634.2,4.0]
[1744660381450,6.7488,1634.4,1633.8,2.97829819]
[1744660381653,12.86759,1634.4,1634.0,6.11988]
[1744660381957,6.11941,1634.2,1633.8,6.12058]
[1744660382158,12.23895,1634.2,1633.8,7.72481282]
[1744660382493,12.23895,1634.2,1633.8,13.84539282]
[1744660382659,12.23885,1634.2,1633.8,13.84539282]
[1744660383059,12.70778205,1634.3,1633.9,12.24048]
[1744660383248,12.70778205,1634.3,1633.8,7.72494282]
[1744660383249,6.11958,1634.1,1633.8,7.72494282]
[1744660383475,6.11958,1634.1,1633.8,13.84549282]
[1744660383672,12.23891,1634.2,1633.9,6.12024]
[1744660383858,1.15848619,1634.3,1633.9,6.12019]
[1744660384060,6.7488,1634.4,1633.9,0.06120119]
[1744660384266,12.86751,1634.4,1634.1,6.11953]
[1744660384575,6.7488,1634.4,1634.2,6.11917]
[1744660384759,5.933,1634.4,1634.2,6.11902]
[1744660384972,6.14,1634.5,1634.3,6.11864]
[1744660385379,5.933,1634.9,1634.4,6.11845]
[1744660385380,0.8278,1634.8,1634.4,6.11845]
[1744660385578,6.94489,1634.8,1634.5,6.11792]
[1744660385778,0.8278,1634.8,1634.7,6.11733]
[1744660385979,12.073,1634.9,1634.7,6.11732]
[1744660386207,12.073,1634.9,1634.6,12.23538]
[1744660386513,6.11755,1634.7,1634.4,6.91521]
[1744660386714,0.55,1634.8,1634.3,6.730654]
[1744660387007,6.11762,1634.7,1634.3,6.11867]
[1744660387310,6.11804,1634.6,1634.2,13.03526]
[1744660387507,6.11804,1634.6,1634.3,6.11882]
[1744660387706,8.48999632,1634.8,1634.2,0.797]
[1744660387911,6.94489,1634.8,1634.5,6.11791]
[1744660388117,6.11709,1634.8,1634.5,6.11791]
[1744660388294,5.933,1634.9,1634.6,6.11749]
[1744660388808,6.11701,1634.8,1634.5,8.39016982]
[1744660388994,6.11701,1634.8,1634.5,14.50811982]
[1744660389301,12.23354,1634.9,1634.5,14.50811982]
[1744660389608,12.23335,1634.9,1634.6,6.11757]
[1744660389907,6.11698,1634.8,1634.5,6.86865]
[1744660390092,6.11698,1634.8,1634.5,12.9866]
[1744660390415,6.11743,1634.7,1634.3,6.93719]
[1744660390582,6.11743,1634.7,1634.4,12.23675]
[1744660390905,6.11776,1634.6,1634.3,7.92876882]
[1744660391264,11.97402,1634.8,1634.4,6.11843]
[1744660391470,6.11734,1634.7,1634.4,6.11843]
[1744660391701,5.41734,1634.7,1634.4,6.11843]
[1744660391898,11.53485,1634.7,1634.4,6.11843]
[1744660392114,11.974,1634.8,1634.4,6.11831]
[1744660392405,5.857,1634.8,1634.5,6.11794]
[1744660392617,6.11767,1634.7,1634.3,14.04738882]
[1744660392780,18.09117,1634.8,1634.4,6.11844]
[1744660392980,18.09117,1634.8,1634.3,1.81004882]